Cogmind - Beta 17 @@@ ROGUE MODE // 2026.06.25 @ 21:39:32 Player: mintimati Result: Destroyed by Y-45 Defender with Heavy Assault Rifle Performance ------------- Evolutions (2) 1000 Regions Visited (5) 1000 Robots Destroyed (31) 155 Value Destroyed (862) 862 Prototype IDs (2) 40 Alien Tech Used (0) 0 Bonus (47) 47 TOTAL SCORE: 3104 Bonus ------- Follower Combat Kills 47 Cogmind --------- Core Integrity 0/550 Matter 300/300 Energy 100/100 System Corruption 3% Temperature Cool (9) Movement Core (100) Ox1 Location -8/Materials Parts ------- > --- POWER (1) -------- (None) > --- PROPULSION (4) --- (None) > --- UTILITY (4) ------ Small Storage Unit Improved Targeting Computer > --- WEAPON (2) ------- (None) > --- INVENTORY (8) ---- Wheel Experimental Sensor Array Heavy EM Shotgun Beam Rifle Heavy Assault Rifle Ripper Peak State ------------ > --- POWER ------------ Light Nuclear Core > --- PROPULSION ------- Wheel Armored Wheel Armored Wheel Armored Wheel > --- UTILITY ---------- Small Storage Unit Seismic Detector Improved Targeting Computer > --- WEAPON ----------- Heavy Particle Cannon Rocket Launcher > --- INVENTORY -------- Experimental Sensor Array Shock Rifle Shock Rifle Beam Rifle Heavy Assault Rifle Mining Laser Ripper [Rating: 21] Favorites ----------- Power Ion Engine Engine Ion Engine Power Core Light Nuclear Core Propulsion Armored Wheel Treads Light Treads Wheel Armored Wheel Flight Unit Flight Unit Utility Small Storage Unit Device Seismic Detector Storage Small Storage Unit Processor Improved Targeting Computer Protection Light Armor Plating Weapon Heavy Particle Cannon Energy Gun Shock Rifle Energy Cannon Heavy Particle Cannon Ballistic Gun Assault Rifle Launcher Rocket Launcher Special Weapon Mining Laser Build | -11 -10 -10 -9 -9 -8 ------- Run | Yrd Mat Min Mat Min Mat Slots Evolved 4 | . . . 2 . 2 Power . | . . . . . . Propulsion 2 | . . . 1 . 1 Utility 2 | . . . 1 . 1 Weapon . | . . . . . . Parts Attached 41 | 5 1 6 22 3 4 Power 5 | 1 . . 2 1 1 Engine 3 | 1 . . 2 . . Core 2 | . . . . 1 1 Reactor . | . . . . . . Propulsion 14 | 2 . 2 9 . 1 Treads 2 | 2 . . . . . Leg . | . . . . . . Wheel 8 | . . . 7 . 1 Hover . | . . . . . . Flight 4 | . . 2 2 . . Utility 8 | 1 . 3 4 . . Device 4 | . . 3 1 . . Storage 1 | 1 . . . . . Processor 2 | . . . 2 . . Hackware . | . . . . . . Protection 1 | . . . 1 . . Artifact . | . . . . . . Weapon 14 | 1 1 1 7 2 2 Energy Gun 3 | 1 . . . 1 1 Energy Cannon 3 | . . . 3 . . Ballistic Gun 5 | . 1 . 3 . 1 Ballistic Cannon . | . . . . . . Launcher 2 | . . . 1 1 . Special Weapon 1 | . . 1 . . . Impact Weapon . | . . . . . . Slashing Weapon . | . . . . . . Piercing Weapon . | . . . . . . Special Melee Weapon . | . . . . . . Unidentified Prototypes 2 | . . 1 1 . . Corrupted Parts 1 | . . . . . 1 System Corruption 3 | . . . . . 3 Parts Lost 12 | . . . 4 . 8 Power 2 | . . . . . 2 Propulsion 5 | . . . 2 . 3 Utility 1 | . . . 1 . . Weapon 4 | . . . 1 . 3 Highest Loss Streak 5 | . . . 2 . 5 To Critical Strikes . | . . . . . . Average Backups 5 | 2 5 2 4 7 6 Power . | . 1 1 . . . Propulsion 1 | . 1 . 1 . . Utility 1 | . 2 . 1 1 1 Weapon 2 | 1 1 . . 5 4 Tool/Special . | . . . . . . Unused Backups 16 | . . 5 6 . 5 Power . | . . . . . . Propulsion 6 | . . 3 3 . . Utility 5 | . . 2 2 . 1 Weapon 5 | . . . 1 . 4 Tool/Special . | . . . . . . Average Slot Usage (%) 82 | . 83 85 84 100 61 Engine 8 | . 14 14 10 9 . Core 1 | . . . . 1 5 Treads 2 | . 28 3 . . . Wheel 18 | . . . 19 33 20 Flight 5 | . . 24 6 . . Device 10 | . . 14 12 11 4 Storage 11 | . 14 14 11 11 9 Processor 6 | . . . 5 11 9 Energy Gun 2 | . 14 1 . 3 2 Energy Cannon 5 | . . . 4 14 5 Ballistic Gun 5 | . 12 1 10 . . Launcher 2 | . . . 1 3 4 Special Weapon 2 | . . 11 1 . . Peak Build Rating 21 | 5 6 12 18 20 21 Average Rating 12 | 3 5 8 12 18 15 On Entrance 10 | . 5 6 12 18 20 Avg Prop Armor Cover (%) . | . . . . . . Naked Turns . | . . . . . . Heaviest Build 23 | 10 11 17 23 23 21 Greatest Support 40 | 40 40 40 36 36 36 Greatest Overweight (x) 5 | . . 2 5 . 2 Average Overweight (x) . | . . 1 . . . Largest Inventory Capacity 8 | 8 8 8 8 8 8 Average Capacity 7 | 6 8 8 8 8 8 Most Carried 8 | 5 8 8 8 8 8 Average Carried 5 | 3 5 2 4 7 6 Final Capacity 8 | 8 8 8 8 8 8 Final Carried 8 | 5 8 2 7 8 6 Class Distribution -------------------- 90% | Mutant 9% | Scavenger-Mutant Dominant Class ---------------- Mutant | -10/Materials Scavenger-Mutant | -10/Mines Mutant | -9/Materials Mutant | -9/Mines Mutant | -8/Materials Resources | -11 -10 -10 -9 -9 -8 ----------- Run | Yrd Mat Min Mat Min Mat Matter Collected 892 | 250 . 55 379 97 111 Remotely . | . . . . . . Salvage Created 839 | 70 . 40 377 123 229 Parts 68 | 6 . 10 28 11 13 Haulers Intercepted . | . . . . . . Recyclers Shooed 2 | 1 . . . . 1 Parts Field Recycled . | . . . . . . Retrieved Matter . | . . . . . . Parts Self-Destructed . | . . . . . . Prevented . | . . . . . . Parts Restored . | . . . . . . Kills | -11 -10 -10 -9 -9 -8 ------- Run | Yrd Mat Min Mat Min Mat Combat Hostiles Destroyed 25 | . . 3 9 7 6 Guns 13 | . . 3 6 . 4 Cannons 4 | . . . 2 2 . AOE 8 | . . . 1 5 2 Classes Destroyed 8 | 2 . 1 2 1 2 Worker 1 | . . . . 1 . Builder 2 | . . . . . 2 Tunneler 1 | 1 . . . . . Recycler 2 | 1 . . 1 . . Swarmer 11 | . . 3 4 4 . Grunt 9 | . . . 1 3 5 Sentry 4 | . . . 4 . . Hunter 1 | . . . . . 1 Best Kill Streak 6 | 1 . 3 4 4 6 Combat Bots Only 4 | . . 3 4 4 4 Max Kills in Single Turn 3 | 1 . 1 1 3 2 Gunslinging . | . . . . . . Exploded 3 | . . . 1 3 1 Melee . | . . . . . . Uniques/NPCs Destroyed . | . . . . . . Combat | -11 -10 -10 -9 -9 -8 -------- Run | Yrd Mat Min Mat Min Mat Hostile Shots Fired 216 | . . 28 59 16 113 Missed 62 | . . 6 15 2 39 Hits 154 | . . 22 44 14 74 Projectile 154 | . . 22 44 14 74 Critical Strikes 3 | . . . . . 3 Damage Taken 2401 | . . 215 726 144 1316 Core 771 | . . 64 131 16 560 Absorbed by Shields 36 | . . . 36 . . Core Remaining (%) 79 | 100 . 74 . 63 . Volleys Fired 75 | 10 2 7 27 10 19 Largest 2 | 1 2 2 2 2 2 Hottest 150 | 50 70 70 150 150 125 Shots Fired 127 | 10 4 14 52 16 31 Gun 85 | 10 4 14 37 . 20 Cannon 30 | . . . 13 11 6 Launcher 12 | . . . 2 5 5 Special . | . . . . . . Kinetic 50 | . 2 7 37 . 4 Thermal 38 | 10 2 7 2 11 6 Explosive 12 | . . . 2 5 5 Electromagnetic 27 | . . . 11 . 16 Robot Hit Streak 7 | 7 3 4 7 2 7 Robot Miss Streak 5 | 1 1 3 5 4 5 Penetration Max . | . . . . . . Secondary Targets . | . . . . . . Shots Hit Robots 70 | 8 3 7 31 3 18 Core Hits 54 | 3 . 3 15 9 24 Critical Kills . | . . . . . . Critical Parts Destroyed . | . . . . . . Critical Strikes 1 | . 1 . . . . Burn 1 | . 1 . . . . Melee Attacks . | . . . . . . Impact . | . . . . . . Slashing . | . . . . . . Piercing . | . . . . . . Sneak Attacks . | . . . . . . Combat Hostiles . | . . . . . . Follow-up Attacks . | . . . . . . Damage Inflicted 2201 | 98 32 69 524 470 1008 Guns 762 | 98 32 69 307 . 256 Cannons 258 | . . . 108 75 75 Explosions 1150 | . . . 99 395 656 Melee . | . . . . . . Ramming 31 | . . . 10 . 21 Kinetic 429 | . 20 43 307 . 59 Thermal 490 | 98 12 26 81 75 198 Explosive 971 | . . . 43 395 533 Electromagnetic 280 | . . . 83 . 197 Impact . | . . . . . . Slashing . | . . . . . . Piercing . | . . . . . . Highest Corruption 3 | . . . . . 3 Average Corruption 3 | . . . . . 3 Corruption Purged . | . . . . . . Corruption Blocked . | . . . . . . Effects 6 | . . . . . 6 Message Errors 2 | . . . . . 2 Matter Fused 1 | . . . . . 1 Parts Rejected 1 | . . . . . 1 Data Loss (minor) 2 | . . . . . 2 Overload Shots . | . . . . . . Overflow Damage 131 | . . . 105 5 21 Projectiles 5 | . . . . 5 . Explosions 126 | . . . 105 . 21 Melee . | . . . . . . Knockbacks . | . . . . . . Impact . | . . . . . . Kinetic . | . . . . . . Secondary . | . . . . . . Self-Inflicted Damage 329 | . . . 159 14 156 Shots 8 | . . . 3 1 4 Rammed 9 | . . . 2 . 7 Targets Rammed 9 | . . . 2 . 7 Kicked . | . . . . . . Crushed . | . . . . . . Highest Temperature 231 | 50 40 110 81 174 231 Average Temperature 46 | 26 20 52 12 62 71 Received Heat Transfer 882 | . . 27 246 24 585 Siege Activations . | . . . . . . Martial Activations . | . . . . . . Shielding Activations . | . . . . . . Robots Disrupted . | . . . . . . Combat Hostiles . | . . . . . . Robots Corrupted . | . . . . . . Combat Hostiles . | . . . . . . Parts Fried . | . . . . . . Impact Corruptions . | . . . . . . Robots Melted . | . . . . . . Combat Hostiles . | . . . . . . Parts Melted . | . . . . . . Heat Transferred 890 | 296 111 74 87 111 211 Parts Sabotaged . | . . . . . . Parts Stolen . | . . . . . . Parts Stripped . | . . . . . . Power Chain Reactions . | . . . . . . Alert | -11 -10 -10 -9 -9 -8 ------- Run | Yrd Mat Min Mat Min Mat Maximum Alert Level . | . . . . . . Low Security (%) 100 | 100 100 100 100 100 100 Level 1 . | . . . . . . Level 2 . | . . . . . . Level 3 . | . . . . . . Level 4 . | . . . . . . Level 5 . | . . . . . . High Security . | . . . . . . Max Security . | . . . . . . Peak Influence 195 | 5 . 70 175 130 195 Initial 63 | . . . . 63 44 Average 38 | . . 14 35 51 69 Influence Increases 1180 | 10 . 85 449 256 380 Destroy 0b10 Robot/C 560 | . . 60 240 140 120 Destroy 0b10 Robot/NC 30 | 10 . . 5 5 10 Destroy Leader 100 | . . 10 50 20 20 Allied During Kill 7 | . . . 7 . . Successful Hack 5 | . . . 5 . . Disable Machine 150 | . . . 30 60 60 Destroy Structure 103 | . . . 37 31 35 Partial Spotted 15 | . . . 15 . . Lose Combat Pursuer 210 | . . 15 60 . 135 Influence Decreases 1032 | 10 . 85 286 305 346 Entered New Map 170 | . . . . 100 70 Time Decay 751 | 10 . 85 255 205 196 Lost Part 111 | . . . 31 . 80 Squads Dispatched 4 | . 1 . . . 3 Investigation 1 | . . . . . 1 Extermination . | . . . . . . Reinforcement 2 | . 1 . . . 1 Assault . | . . . . . . Garrison 1 | . . . . . 1 Intercept . | . . . . . . Searches Triggered . | . . . . . . Construction Impeded 1 | . . . . . 1 Haulers Reinforced . | . . . . . . Active Scanning Responses . | . . . . . . Cargo Convoy Interrupts . | . . . . . . Stealth | -11 -10 -10 -9 -9 -8 --------- Run | Yrd Mat Min Mat Min Mat Distress Signals 7 | . . . 1 . 6 Communications Jammed . | . . . . . . Distress Signals . | . . . . . . Times Spotted 61 | . 3 4 21 7 26 Peak Tracking Total 9 | . 3 3 3 4 9 Tactical Retreats 8 | . . 1 3 . 4 Traps | -11 -10 -10 -9 -9 -8 ------- Run | Yrd Mat Min Mat Min Mat Traps Triggered . | . . . . . . Indirectly . | . . . . . . Trap Hack Attempts . | . . . . . . Triggered . | . . . . . . Disarmed . | . . . . . . Reprogrammed . | . . . . . . Reused . | . . . . . . Traps Extracted . | . . . . . . Installed . | . . . . . . Triggered . | . . . . . . Machines | -11 -10 -10 -9 -9 -8 ---------- Run | Yrd Mat Min Mat Min Mat Machines Disabled 10 | . . . 2 4 4 Max in Single Turn 2 | . . . 1 2 1 Machines Repaired . | . . . . . . Machines Dismantled . | . . . . . . Machines Sabotaged . | . . . . . . Overloaded Fab Kills . | . . . . . . Hacking | -11 -10 -10 -9 -9 -8 --------- Run | Yrd Mat Min Mat Min Mat Machines Accessed 5 | . . 1 1 . 3 Terminals 2 | . . . 1 . 1 Fabricators . | . . . . . . Repair Stations 1 | . . . . . 1 Recycling Units . | . . . . . . Scanalyzers 1 | . . . . . 1 Garrison Access . | . . . . . . Total Hacks 8 | . . 1 3 . 4 Successful 4 | . . 1 2 . 1 Failed 4 | . . . 1 . 3 Catastrophic 2 | . . . . . 2 Database Lockouts . | . . . . . . Manual 3 | . . . . . 3 Terminals 5 | . . . 3 . 2 Fabricators . | . . . . . . Repair Stations 1 | . . . . . 1 Recycling Units . | . . . . . . Scanalyzers 1 | . . . . . 1 Garrison Access . | . . . . . . Terminal Hacks 3 | . . 1 2 . . Open Door 1 | . . 1 . . . Branch Access Points 1 | . . . 1 . . Zone Layout 1 | . . . 1 . . Fabricator Hacks . | . . . . . . Repair Station Hacks 1 | . . . . . 1 Scan Component 1 | . . . . . 1 Recycling Unit Hacks . | . . . . . . Scanalyzer . | . . . . . . Garrison Access Hacks . | . . . . . . Unauthorized Hacks . | . . . . . . Terminals . | . . . . . . Fabricators . | . . . . . . Repair Stations . | . . . . . . Recycling Units . | . . . . . . Scanalyzers . | . . . . . . Garrison Access . | . . . . . . Data Cores Recovered . | . . . . . . Used . | . . . . . . Hacking Detections 1 | . . . . . 1 Full Trace Events 1 | . . . . . 1 Feedback Events . | . . . . . . Feedback Blocked . | . . . . . . Robot Schematics Acquired . | . . . . . . Robots Built . | . . . . . . Authchips . | . . . . . . Time . | . . . . . . Total Robot Build Rating . | . . . . . . Part Schematics Acquired . | . . . . . . Parts Built . | . . . . . . Authchips . | . . . . . . Time . | . . . . . . Total Part Build Rating . | . . . . . . Part Studies Acquired . | . . . . . . Parts Repaired . | . . . . . . Time . | . . . . . . Parts Recycled . | . . . . . . Recycled Matter . | . . . . . . Retrieved Matter . | . . . . . . Retrieved Components . | . . . . . . Parts Scanalyzed . | . . . . . . Part Schematics Acquired . | . . . . . . Parts Damaged . | . . . . . . Bothacking | -11 -10 -10 -9 -9 -8 ------------ Run | Yrd Mat Min Mat Min Mat Used RIF Installer . | . . . . . . Robots Hacked . | . . . . . . Non-combat . | . . . . . . Combat . | . . . . . . Robot Hacks Applied . | . . . . . . Relay Couplers Released . | . . . . . . Fabnet Peak Effective % . | . . . . . . Robots Rewired . | . . . . . . Allies Hacked . | . . . . . . Hacks Repelled . | . . . . . . Allies | -11 -10 -10 -9 -9 -8 -------- Run | Yrd Mat Min Mat Min Mat Total Allies 3 | . . 1 2 . . Largest Group 1 | . . 1 1 . . Highest-Rated Group 15 | . . 8 15 . . Highest-Rated Ally 15 | . . 8 15 . . Total Orders 11 | . . 2 9 . . EXPLORE 11 | . . 2 9 . . Ally Attacks 20 | . . 2 18 . . Total Damage 138 | . . 4 134 . . Kills 3 | . . . 3 . . Allies Corrupted . | . . . . . . Allies Melted . | . . . . . . Intel | -11 -10 -10 -9 -9 -8 ------- Run | Yrd Mat Min Mat Min Mat Active Infowar (turns) 1622 | . . 200 668 460 294 Seismic 1586 | . . 164 668 460 294 ECM 36 | . . 36 . . . Robot Analysis Total . | . . . . . . Derelict Logs Recovered . | . . . . . . Drone Launches 17 | . . 2 15 . . Drone Recoveries 17 | . . 2 15 . . Exploration | -11 -10 -10 -9 -9 -8 ------------- Run | Yrd Mat Min Mat Min Mat Turns Passed 2768 | 170 154 332 1073 460 579 Spaces Moved 1770 | 91 87 95 673 418 406 Core 131 | 9 . . 7 . 115 Treads 173 | 82 87 4 . . . Legs . | . . . . . . Wheels 1305 | . . . 596 418 291 Hover . | . . . . . . Flight 161 | . . 91 70 . . Fastest Speed 50 | 50 160 117 83 90 90 Average Speed 105 | 149 160 149 101 90 94 Slowest Speed 300 | 160 160 200 300 90 150 Overloaded Moves . | . . . . . . Propulsion Burnouts . | . . . . . . Robots Hopped . | . . . . . . Potential Cave-ins . | . . . . . . Cave-ins Triggered . | . . . . . . Exploration Rate (%) 41 | 4 19 78 32 82 32 Regions Visited 5 Branch Regions 2 Pre-discovered Areas . | . . . . . . Known Exits Taken 1 | . . . 1 . . Unknown Exits Taken 4 | 1 1 1 . 1 . Scrap Searched 2 | . . 1 . 1 . Spaces Dug . | . . . . . . Terrain Destroyed 150 | . . . 44 46 60 Melee . | . . . . . . Projectile 8 | . . . . 6 2 AOE 142 | . . . 44 40 58 Terrain Rammed . | . . . . . . Walls Destroyed . | . . . . . . Machines Disabled . | . . . . . . Actions | -11 -10 -10 -9 -9 -8 --------- Run | Yrd Mat Min Mat Min Mat Total 2579 | 115 98 282 1025 488 571 Wait 561 | . 5 156 230 46 124 Move 1765 | 90 86 94 672 417 406 Hop . | . . . . . . Pick Up 61 | 10 4 4 34 5 4 Fast Attach . | . . . . . . Attach 49 | 5 1 7 26 4 6 Detach 20 | . . 4 13 2 1 Swap . | . . . . . . Drop 39 | . . 10 21 4 4 Fire 75 | 10 2 7 27 10 19 Melee . | . . . . . . Ram 9 | . . . 2 . 7 Kick . | . . . . . . Crush . | . . . . . . Escape Stasis . | . . . . . . Rewire . | . . . . . . Trap . | . . . . . . Miscellaneous . | . . . . . . Route ------- -11/Scrapyard -10/Materials -10/Mines (discovered 2 exits: *Mat x2) -9/Materials (discovered 2 exits: *Min x2) -9/Mines -8/Materials History --------- Turn | Location | Event 4 | -11/Scrapyard | Discovered new exit (range 15) 171 | -11/Scrapyard | Entered Materials 247 | -10/Materials | Discovered new exit (range 15) 301 | -10/Materials | Build established: Mutant 325 | -10/Materials | Entered Mines 526 | -10/Mines | Found the Drone Emporium 543 | -10/Mines | Found Prototype Device 545 | -10/Mines | Identified Splice Drone Bay 551 | -10/Mines | Discovered new exit (range 10) 573 | -10/Mines | Discovered new exit (range 49) 657 | -10/Mines | Entered Materials 657 | -9/Materials | Evolved 2 slots: Propulsion x1, Utility x1 1236 | -9/Materials | Identified exit to Mines 1730 | -9/Materials | Entered Mines 1733 | -9/Mines | Discovered new exit (range 12) 1839 | -9/Mines | Received a Rocket Launcher from a helpful Derelict 2002 | -9/Mines | Found a damaged Exp. Sensor Array with a note attached 2007 | -9/Mines | Found Prototype Device 2051 | -9/Mines | A weapon hastily lodged in a ceiling crevice suddenly fell to the ground 2190 | -9/Mines | Entered Materials 2190 | -8/Materials | Evolved 2 slots: Propulsion x1, Utility x1 2526 | -8/Materials | Garrison activated, responded to threat 2589 | -8/Materials | Lost 3 parts (2p1w) 2667 | -8/Materials | Core integrity fell below 50% 2696 | -8/Materials | Lost 5 parts (3n2w) 2755 | -8/Materials | Core integrity fell below 20% 2769 | -8/Materials | Destroyed by Y-45 Defender with Heavy Assault Rifle Last Messages --------------- 02629_ Atomic Centrifuge disabled. 02635_ Critical hit (Burn: +37). 02639_ Arm. Wheel destroyed. 02654_ 9PF%#DR2SNZYGMCNN 02718_ Acquired Prototype Energy Gun. 02732_ System corrupted: Component data lost. 02748_ Critical hit (Burn: +37). 02751_ Connecting with Terminal... 02751_ ALERT: Suspicious activity at Terminal M012. Dispatching Investigation squad. 02758_ Slammed into Y-45 Defender. 02759_ Imp. Targeting Computer broken. 02759_ Destabilizing: Short circuit. 02760_ Slammed into Y-45 Defender. [Achievement: Deductive Reasoning] Map ----- +----------------------------------------------------+ | ????????????????????????????????????????????????? | | ?????????????????????????????????????????????#### | | ?????????????????????????????????????######### | | ?????????????????????????????????????? # | | ??????????????????????????????????????"""" # | | ??????????????########????????????????"""" # | | ????########??#! ! !#???????????????""""" # | | ????# #??# #???????????????""""" + | | ????# #??# #???????????????""""" # | | ????#[ #??# "T" #???????????????""""" # | | ????# #??# """ #???????????????""""" # | | ????# !????? ???????????????# # | | ????# ?????###+###??????????????########## | | ?????#+#+####### #???????????????????????# | | ?????# #???????????????????????# | | ?????# T #???????????????????????# | | ?????# ! #???????????????????????# | | ?????### ####### #???????????????????????# | | ???????# #?????### ###???????????????????????# | | ???????# #???????# #?????????????????????????# | | ???????# #???????# #?????????????????????????# | | ???????#/#########%#?????????????????????????# | | ???????# * ##%#?????????????????????????# | | ???????#""" ##%########+#########+#+#????# | | ???????#"R # % ###### | | ???????#""" # % @ a g | | ???????# + Y u ###### | | ???????# """ # u#######w#############????# % | | ???????# """ # #??????? ???????????????# | | ???????# """ # #????????! ????????????## | | ???????# # #?????????? #???????????# | | ???????########## +???????????#???????????# | | ????????????????# # ????????????????????? + T | | ????????????????# ###??????????????????? # | | ????????????????# ???????????????????? ?# | | ????????????????# ???????????????????????## | | ????????????????# ???????????????????????# | | ????????????????######???????????????????????# | | ?????????????????????????????????????????????# | | ?????????????????????????????????????????????# | | ?????????????????????????????????????????????# | | ???????????????????????????????????????####### | | ???????????????????????????????????????# ## | | ???????????????????????????????????????# ## | | ???????????????????????????????????????# = ## | | ???????????????????????????????????????# ## | | ???????????????????????????????????????# ## | | ???????????????????????????????????????# ?# | | ???????????????????????????????????????# ?# | | ???????????????????????????????????????? ??# | +----------------------------------------------------+ Best States ------------- Heat Dissipation 31 Energy Generation 14 Energy Capacity 250 Matter Stores 300 Matter Capacity 300 Sight Range 16 Terrain Scan Density 85 ECM Strength 1 Armor Coverage 150 Evasion (%) 43 Targeting Accuracy 6 Recoil Reduction 2 Item Schematics ----------------- None Robot Schematics ------------------ None Fabricated ------------ Nothing Repaired ---------- Nothing Studied --------- None Alien Tech Used ----------------- None Achievements -------------- Deductive Reasoning Factory Defaults Resistances Are Futile Challenges ------------ None Game ------ Seed MicrowarpDisintegrationLog Manual? 0 Play Time 00:27:04 Cumulative 10.5 hours Start 2026.06.25 @ 21:14:19 End 2026.06.25 @ 21:39:32 Sessions 1 Manual Loads 0 Difficulty Rogue Special Mode None Game No. 20 Rogue 20 Adventurer 0 Explorer 0 Win Type - Total 0 Types 0/0/0/0/0/0/0/0/0/0 Lore% 1 Gallery% 13 Achievement% 11 Wizard Run 0 Options --------- Layout 1 ASCII 0 Keyboard 1 Movement Numpad Keybinds 0 Fullscreen 1 Font 24/Proggy Map View 50x35 Zoom Use 0% Tactical HUD 1 Map Filters NONE Filters NONE Steam 1 RUN: 8a367d86-5818-4ad9-9a46-4e4dd9d13536